[Event "DVM U16 2019"]
[Site "Magedburg"]
[Date "2019.12.30"]
[Round "7"]
[White "Grabbel, Lennart Christian"]
[Black "Baranyai-Molnar, Adam-Kristof"]
[Result "1-0"]
[ECO "D08"]
[WhiteElo "1849"]
[BlackElo "1756"]
[Annotator "NA"]
[PlyCount "73"]
[EventDate "2019.12.27"]
[EventType "team-tourn"]
[EventRounds "7"]
[EventCountry "GER"]
[SourceTitle "playchess.com"]
[Source "ChessBase"]
[SourceQuality "1"]
[WhiteTeam "Hamburger SK"]
[BlackTeam "SF Neuberg"]
[WhiteTeamCountry "GER"]
[TimeControl "40/5400+30:1800+30"]

1. d4 {[%emt 0:00:00]} d5 {[%emt 0:00:00]} 2. c4 {[%emt 0:00:00]} e5 {[%emt 0:00:00]} 3. dxe5 {[%emt 0:00:00]} d4 {[%emt 0:00:00]} 4. Nf3 {[%emt 0:00:00]} Nc6 {[%emt 0:00:00]} 5. a3 {[%emt 0:00:00]} Nge7 {[%emt 0:00:00]} 6. e3 {[%emt 0:01:49]} Bg4 {[%emt 0:01:11] D07: Queen's Gambit: Chigorin Defence} (6... Nf5 7. exd4 Nfxd4 8. Nxd4 Qxd4 9. Nc3 Be6 10. Be3 Qxe5 11. Be2 Rd8 12. Qa4 a6 13. O-O Bd6 14. g3 {1-0 (42) Bocharov,D (2611)-Morozevich,A (2683) Sochi 2016}) 7. Be2 {[%emt 0:01:45] unterminated} Bxf3 {[%emt 0:01:53]} 8. Bxf3 {[%emt 0:00:06]} Nxe5 {[%emt 0:00:03]} (8... dxe3 $11 {keeps the balance.} 9. Qxd8+ Rxd8) 9. Bxb7 {[%emt 0:01:32]} Rb8 {[%emt 0:00:12]} 10. exd4 {[%emt 0:03:02]} Rxb7 $146 {[%emt 0:00:18]} ({Predecessor:} 10... Nxc4 11. Qa4+ Qd7 12. Qxc4 Rxb7 13. O-O g6 14. b4 {½-½ (55) Fridgeirsson,D (1787)-Schioth,T Reykjavik 2009}) 11. dxe5 {[%emt 0:00:05]} Qxd1+ {[%emt 0:00:04]} 12. Kxd1 {[%emt 0:00:07]} Nc6 {[%emt 0:00:51] unterminated} 13. Re1 {[%emt 0:02:11]} Bc5 {[%emt 0:00:14] unterminated} 14. f4 {[%emt 0:00:42] unterminated} a5 {[%emt 0:00:57] unterminated} 15. Nc3 {[%emt 0:01:12]} O-O {[%emt 0:00:20] unterminated} 16. Ne2 {[%emt 0:03:02] unterminated} (16. Rb1 $142) 16... a4 {[%emt 0:02:00]} ({Better is} 16... f6 $14) 17. Kc2 {[%emt 0:01:16] unterminated} Na5 {[%emt 0:01:09] unterminated} 18. Nc3 {[%emt 0:02:14] unterminated} Bd4 $2 {[%emt 0:03:26]} (18... Nb3 $16 19. Ra2 Ra8) 19. Nxa4 {[%emt 0:01:33] unterminated} Nxc4 {[%emt 0:01:56]} 20. Nc3 {[%emt 0:00:09] unterminated} c5 {[%emt 0:00:40] unterminated} 21. Ra2 {[%emt 0:20:39] unterminated} Rfb8 {[%emt 0:00:58]} 22. Re4 {[%emt 0:00:43] unterminated} Rb3 {[%emt 0:11:50] unterminated} 23. Ne2 {[%emt 0:05:25] unterminated} Na5 {[%emt 0:17:42]} 24. Nxd4 {[%emt 0:02:24]} cxd4 {[%emt 0:00:04]} 25. Rxd4 {[%emt 0:00:04]} R3b6 {[%emt 0:00:05] unterminated} 26. Bd2 {[%emt 0:00:55]} Rc8+ $18 {[%emt 0:01:22]} 27. Bc3 {[%emt 0:00:17]} Rh6 {[%emt 0:00:26]} 28. h3 {[%emt 0:01:49]} Nc4 {[%emt 0:00:23]} 29. Kd3 {[%emt 0:01:17]} Nb6 {[%emt 0:04:36]} 30. a4 {[%emt 0:00:59]} Rg6 {[%emt 0:00:50]} 31. a5 {[%emt 0:00:06]} Rg3+ {[%emt 0:00:17]} 32. Ke2 {[%emt 0:00:55]} Nc4 {[%emt 0:14:07]} 33. Kf2 {[%emt 0:00:07]} Rg6 {[%emt 0:11:18]} 34. Be1 {[%emt 0:04:42]} Ra6 {[%emt 0:04:12]} 35. b3 {[%emt 0:00:21]} Nb6 {[%emt 0:00:27]} 36. Rd6 {[%emt 0:00:06]} Rca8 {[%emt 0:00:25]} 37. Rad2 {[%emt 0:00:39] normal} 1-0

[Event "DVM U16 2019"]
[Site "Magedburg"]
[Date "2019.12.30"]
[Round "7"]
[White "Glinzner, Alva"]
[Black "Henning, Marvin"]
[Result "0-1"]
[ECO "B01"]
[WhiteElo "1812"]
[BlackElo "1972"]
[Annotator "NA"]
[PlyCount "67"]
[EventDate "2019.12.27"]
[EventType "team-tourn"]
[EventRounds "7"]
[EventCountry "GER"]
[SourceTitle "playchess.com"]
[Source "ChessBase"]
[SourceQuality "1"]
[WhiteTeam "Lübecker SV"]
[BlackTeam "Reideburger SV 90 Halle"]
[WhiteTeamCountry "GER"]
[BlackTeamCountry "GER"]
[TimeControl "40/5400+30:1800+30"]

1. e4 {[%emt 0:00:00]} d5 {[%emt 0:00:00]} 2. exd5 {[%emt 0:00:00]} Qxd5 {[%emt 0:00:00]} 3. Nc3 {[%emt 0:00:03]} Qd6 {[%emt 0:00:00]} 4. d4 {[%emt 0:00:29]} Nf6 {[%emt 0:00:00]} 5. Nf3 {[%emt 0:00:31]} a6 {[%emt 0:00:00]} 6. g3 {[%emt 0:01:16]} Bg4 {[%emt 0:00:20]} 7. Bg2 {[%emt 0:00:20] B01: Scandinavian Defence} Nc6 {[%emt 0:00:39]} 8. O-O {[%emt 0:01:26] unterminated} O-O-O {[%emt 0:01:07] unterminated} 9. d5 {[%emt 0:02:23]} Nb4 {[%emt 0:01:43] unterminated} 10. Bf4 {[%emt 0:22:54] unterminated} Qb6 $146 {[%emt 0:11:55] unterminated} ({Predecessor:} 10... Qc5 $1 $14 11. Be3 Qd6 12. h3 Bh5 13. Bf4 Qc5 14. Be3 Qd6 15. Bf4 Qc5 16. Be3 Qd6 {½-½ (18) Ninov,N (2543)-Chatalbashev,B (2602) Bankia 2011}) 11. Na4 {[%emt 0:07:49] unterminated} Qa5 {[%emt 0:01:58] unterminated} 12. c4 {[%emt 0:02:21] unterminated} e5 {[%emt 0:13:38] unterminated} 13. Bxe5 {[%emt 0:07:14] unterminated} Nfxd5 {[%emt 0:01:17] unterminated} 14. cxd5 {[%emt 0:20:01]} Rxd5 {[%emt 0:00:15]} 15. Qb3 {[%emt 0:02:05] unterminated} Bxf3 {[%emt 0:06:52] unterminated} 16. Qxf3 {[%emt 0:06:27] unterminated} Rxe5 {[%emt 0:01:26]} 17. Qxb7+ {[%emt 0:00:33]} Kd7 {[%emt 0:00:08] unterminated} 18. a3 {[%emt 0:05:25] unterminated} Qxa4 {[%emt 0:33:46] unterminated} 19. axb4 {[%emt 0:01:21]} Qb5 $18 {[%emt 0:00:29]} 20. Qa8 {[%emt 0:03:39]} Re8 {[%emt 0:03:16]} 21. Qf3 {[%emt 0:02:58]} Bxb4 {[%emt 0:05:03]} 22. Rac1 {[%emt 0:03:35]} g6 {[%emt 0:15:22]} 23. Qxf7+ {[%emt 0:04:31]} Re7 {[%emt 0:00:01]} 24. Bh3+ {[%emt 0:01:57]} Kd8 {[%emt 0:00:03]} 25. Qf3 {[%emt 0:00:14]} Qb8 {[%emt 0:00:46]} 26. Rc6 {[%emt 0:02:45]} Qb7 {[%emt 0:01:24]} 27. Qf6 {[%emt 0:00:40]} Rg8 {[%emt 0:00:25]} 28. Rd1+ {[%emt 0:00:29]} Ke8 {[%emt 0:00:19]} 29. Re6 {[%emt 0:00:29]} Qb5 {[%emt 0:00:25]} 30. Rxe7+ Bxe7 {[%emt 0:00:02]} 31. Qe6 {[%emt 0:00:39]} Rf8 {[%emt 0:00:41]} 32. Qe3 {[%emt 0:00:53]} Qc5 {[%emt 0:00:46]} 33. Bd7+ {[%emt 0:00:26]} Kf7 {[%emt 0:00:02]} 34. Qe2 {[%emt 0:00:00] normal} 0-1

[Event "DVM U16 2019"]
[Site "Magedburg"]
[Date "2019.12.30"]
[Round "7"]
[White "Wang, Ruiming"]
[Black "Biermann, Lenhard"]
[Result "1-0"]
[ECO "C15"]
[WhiteElo "1808"]
[BlackElo "2098"]
[Annotator "NA"]
[PlyCount "61"]
[EventDate "2019.12.27"]
[EventType "team-tourn"]
[EventRounds "7"]
[EventCountry "GER"]
[SourceTitle "playchess.com"]
[Source "ChessBase"]
[SourceQuality "1"]
[WhiteTeam "SG Leipzig"]
[BlackTeam "SG Bochum"]
[WhiteTeamCountry "GER"]
[BlackTeamCountry "GER"]
[TimeControl "40/5400+30:1800+30"]

{[%evp 10,47,28,8,1,6,14,0,12,13,-3,32767,18,16,32767,32767,32767,32767,26,32767,29,32767,32767,57,77,64,96,107,128,32767,32767,156,32767,181,188,187,204,153,32767,354]} 1. e4 {[%emt 0:00:00]} e6 {[%emt 0:00:00]} 2. d4 {[%emt 0:00:00]} d5 {[%emt 0:00:00]} 3. Nc3 {[%emt 0:00:00]} Bb4 {[%emt 0:00:00]} 4. exd5 {[%emt 0:00:00]} exd5 {[%emt 0:00:00]} 5. Bd3 {[%emt 0:00:04] unterminated} Nf6 {[%emt 0:09:34] unterminated} 6. Nge2 {[%emt 0:02:51]} O-O {[%emt 0:00:35] unterminated} 7. O-O {[%emt 0:01:22] unterminated} c6 {[%emt 0:04:35] unterminated} 8. Bg5 {[%emt 0:03:30] unterminated unterminated. C01: French: Exchange Variation} Nbd7 {[%emt 0:00:53] unterminated} (8... h6 9. Bh4 Re8 10. f3 Nbd7 11. Qd2 Nf8 12. Rae1 Bd6 13. Bg3 Ng6 14. Bxd6 Qxd6 15. Bxg6 fxg6 {1-0 (39) Aronian,L (2767)-Caruana,F (2822) chess.com INT 2018}) 9. Ng3 {[%emt 0:06:19] unterminated} h6 {[%emt 0:05:34] unterminated} 10. Bf4 {[%emt 0:03:11] unterminated} Re8 {[%emt 0:03:34] unterminated} 11. Nce2 {[%emt 0:07:02] unterminated} Ne4 $146 {[%emt 0:09:25] unterminated} ({Predecessor:} 11... Nf8 12. c3 Bd6 13. Qd2 a5 14. Bxd6 Qxd6 15. Rae1 b6 {½-½ (52) Lennartz,M (2447)-Praznik,N (2288) ICCF email 2016}) 12. c3 {[%emt 0:03:08]} Bf8 {[%emt 0:00:47] unterminated} 13. f3 {[%emt 0:01:45] unterminated} Nd6 {[%emt 0:02:33] unterminated} 14. b3 {[%emt 0:05:58] unterminated} Nf6 {[%emt 0:22:55] unterminated} 15. Qc2 {[%emt 0:03:44] unterminated} Be6 {[%emt 0:03:01] unterminated} 16. Rfe1 {[%emt 0:02:06] unterminated} Rc8 {[%emt 0:01:50] unterminated} 17. Be5 {[%emt 0:05:38] unterminated} Bd7 {[%emt 0:17:11] unterminated} 18. Nf4 {[%emt 0:02:03] unterminated} Be7 {[%emt 0:04:25] unterminated} 19. Re2 {[%emt 0:03:15] unterminated} Qa5 {[%emt 0:03:53] unterminated} 20. Rae1 {[%emt 0:01:56] unterminated} Qb6 {[%emt 0:02:33] unterminated} 21. Nf5 {[%emt 0:02:23] unterminated} (21. Qd2 $142) 21... Bxf5 {[%emt 0:02:34]} 22. Bxf5 {[%emt 0:00:07]} Rcd8 {[%emt 0:00:25] unterminated} 23. g4 {[%emt 0:04:43] unterminated} Qa5 {[%emt 0:03:00] unterminated} 24. h4 $18 {[%emt 0:00:28]} Qc7 {[%emt 0:01:53]} 25. g5 {[%emt 0:01:32]} hxg5 {[%emt 0:00:20]} 26. hxg5 {[%emt 0:00:03]} Nd7 {[%emt 0:00:07]} 27. g6 {[%emt 0:07:25]} Nxe5 {[%emt 0:00:34]} 28. Rxe5 {[%emt 0:00:52]} fxg6 {[%emt 0:01:09]} 29. Be6+ {[%emt 0:00:30]} Nf7 {[%emt 0:00:14]} 30. Qxg6 {[%emt 0:00:30]} Rf8 {[%emt 0:00:52]} 31. Rh5 {[%emt 0:00:34] normal} 1-0

[Event "DVM U16 2019"]
[Site "Magedburg"]
[Date "2019.12.30"]
[Round "7"]
[White "Alhamid, Mohamad"]
[Black "Costa, Leonardo"]
[Result "1/2-1/2"]
[ECO "C54"]
[WhiteElo "1688"]
[BlackElo "2048"]
[Annotator "NA"]
[PlyCount "71"]
[EventDate "2019.12.27"]
[EventType "team-tourn"]
[EventRounds "7"]
[EventCountry "GER"]
[SourceTitle "playchess.com"]
[Source "ChessBase"]
[SourceQuality "1"]
[WhiteTeam "Delmenhorster SK"]
[BlackTeam "SK München Südost"]
[WhiteTeamCountry "GER"]
[BlackTeamCountry "GER"]
[TimeControl "40/5400+30:1800+30"]

1. e4 e5 2. Nf3 Nc6 3. Bc4 Bc5 4. c3 Nf6 5. d3 d6 6. Bb3 a6 7. O-O Ba7 8. Nbd2 {unterminated} O-O {unterminated} 9. h3 {unterminated} Be6 {unterminated} 10. Re1 {C54: Giuoco Piano: 4 c3 Nf6, main lines with 5 d4 and 5 d3} (10. Bc2 d5 11. Ng5 Qe8 12. Ndf3 Rd8 13. Nxe6 fxe6 14. Qe2 Nh5 15. Kh2 Nf4 16. Bxf4 Rxf4 17. Rae1 Qf7 {½-½ (42) Aronian,L (2764)-Kramnik,V (2792) Paris 2018}) 10... Bxb3 {unterminated} 11. axb3 {unterminated} Re8 {unterminated} 12. Nf1 d5 13. Ng3 dxe4 $146 ({Predecessor:} 13... h6 14. b4 Qd7 15. Qc2 Rad8 16. Bd2 dxe4 17. dxe4 Qd3 18. Qxd3 Rxd3 {0-1 (70) Ingebretsen,J (2062)-Arvola,B (2458) Fornebu 2017}) 14. dxe4 Qxd1 15. Rxd1 h6 {unterminated} 16. Re1 {unterminated} Rad8 {unterminated} 17. Be3 Bxe3 18. Rxe3 {unterminated} Rd7 {unterminated} 19. Ree1 {unterminated} Red8 {unterminated} 20. Kf1 {unterminated} Kf8 {unterminated} 21. Ke2 {unterminated} g6 22. Red1 a5 23. Rxd7 Rxd7 24. Rd1 Rxd1 25. Kxd1 Ke7 {unterminated} 26. Nd2 {unterminated} Ke6 {unterminated} 27. f3 Nh5 28. Nxh5 gxh5 29. h4 {unterminated} Ne7 30. Nc4 b6 {unterminated} 31. Ne3 {unterminated} b5 {unterminated} 32. Ke2 f6 {unterminated} 33. Kd3 c6 $14 34. c4 Kd6 35. Nf5+ Nxf5 36. exf5 {normal} 1/2-1/2

[Event "DVM U16 2019"]
[Site "Magedburg"]
[Date "2019.12.30"]
[Round "7"]
[White "Emmerich, Julian"]
[Black "Goltser, Ilja"]
[Result "1/2-1/2"]
[ECO "B03"]
[WhiteElo "1270"]
[BlackElo "1703"]
[Annotator "NA"]
[PlyCount "100"]
[EventDate "2019.12.27"]
[EventType "team-tourn"]
[EventRounds "7"]
[EventCountry "GER"]
[SourceTitle "playchess.com"]
[Source "ChessBase"]
[SourceQuality "1"]
[WhiteTeam "SF Neuberg"]
[BlackTeam "Hamburger SK"]
[BlackTeamCountry "UKR"]
[TimeControl "40/5400+30:1800+30"]

1. e4 Nf6 2. e5 Nd5 3. d4 d6 4. exd6 exd6 5. g3 Be7 6. Bg2 Nb6 7. Ne2 Bf6 8. Be3 Nc6 9. Nbc3 Bf5 10. Nd5 Nxd5 11. Bxd5 Nb4 12. Bb3 Be4 13. O-O O-O 14. Nc3 Bf5 15. a3 Na6 16. Bd5 c6 17. Bg2 d5 18. Ne2 Nc7 19. Nf4 Ne6 20. Nxe6 Bxe6 21. Qd2 Re8 22. Rfe1 h6 23. c3 Qd7 24. Re2 Re7 25. Rae1 Rae8 26. Bf4 Bg4 27. Rxe7 Rxe7 28. Rxe7 Qxe7 29. Qe3 Qxe3 30. Bxe3 Be7 31. h4 Kh7 32. Kh2 g5 33. hxg5 hxg5 34. f3 Be6 35. Bf1 Bf5 36. Kg2 Kg7 37. Kf2 f6 38. Ke2 Kf7 39. Bc1 Bd6 40. f4 g4 41. Kd2 Be4 42. b3 Bc7 43. c4 Ba5+ 44. b4 Bb6 45. c5 Bc7 46. a4 a6 47. b5 axb5 48. axb5 Ba5+ 49. Ke2 cxb5 50. Kf2 b4 {normal} 1/2-1/2